fUST/lending_fUST_20250605
["ID","MTS","AMOUNT","RATE_DAILY","PERIOD"]
[364328844,1749071439083,-440.0,0.00018686,2]
[364328845,1749071439096,-480.0,0.00018686,2]
[364328846,1749071439105,-440.0,0.00018686,2]
[364328847,1749071439115,-440.0,0.00018686,2]
[364328848,1749071439124,-370.0,0.00018686,2]
[364328849,1749071439133,-460.0,0.00018686,2]
[364328850,1749071439142,-460.0,0.00018686,2]
[364328851,1749071439152,-440.0,0.00018686,2]
[364328852,1749071439161,-440.0,0.00018686,2]
[364328853,1749071439171,-440.0,0.00018686,2]
[364328854,1749071439180,-420.0,0.00018686,2]
[364328855,1749071439189,-450.0,0.00018686,2]
[364328856,1749071439199,-440.0,0.00018686,2]
[364328857,1749071439208,-440.0,0.00018686,2]
[364328858,1749071439218,-440.0,0.00018686,2]
[364328859,1749071439228,-508.07271145,0.00018686,2]
[364328860,1749071439236,-270.21,0.00018686,2]
[364328861,1749071439245,-745.04,0.00018686,2]
[364328862,1749071439253,-440.0,0.00018686,2]
[364328863,1749071439262,-440.0,0.00018686,2]
[364328864,1749071439271,-440.0,0.00018686,2]
[364328865,1749071439279,-440.0,0.00018686,2]
[364328866,1749071439288,-440.0,0.00018686,2]
[364328867,1749071439298,-440.0,0.00018686,2]
[364328868,1749071439307,-218.16306545,0.00018686,2]
[364328869,1749071439317,-440.0,0.00018687,2]
[364328870,1749071439327,-440.0,0.00018687,2]
[364328871,1749071439336,-440.0,0.00018687,2]
[364328872,1749071439347,-440.0,0.00018687,2]
[364328873,1749071439357,-430.0,0.00018687,2]
[364328874,1749071439367,-440.0,0.00018687,2]
[364328875,1749071439376,-479.89200613,0.00018687,2]
[364328876,1749071439386,-440.0,0.00018687,2]
[364328877,1749071439397,-440.0,0.00018687,2]
[364328878,1749071439406,-440.0,0.00018687,2]
[364328879,1749071439415,-440.0,0.00018687,2]
[364328880,1749071439425,-440.0,0.00018687,2]
[364328881,1749071439435,-440.0,0.00018687,2]
[364328882,1749071439444,-440.0,0.00018687,2]
[364328883,1749071439453,-984.47,0.00018687,2]
[364328884,1749071439462,-440.0,0.00018687,2]
[364328885,1749071439472,-440.0,0.00018687,2]
[364328886,1749071439482,-442.11,0.00018687,2]
[364328887,1749071439492,-440.0,0.00018687,2]
[364328888,1749071439501,-440.0,0.00018687,2]
[364328889,1749071439511,-440.0,0.00018687,2]
[364328890,1749071439521,-577.98,0.00018687,2]
[364328891,1749071439530,-440.0,0.00018687,2]
[364328892,1749071439540,-440.0,0.00018687,2]
[364328893,1749071439550,-764.66,0.00018687,2]
[364328894,1749071439559,-440.0,0.00018687,2]
[364328895,1749071439570,-1093.47,0.00018687,2]
[364328896,1749071439579,-410.0,0.00018688,2]
[364328897,1749071439589,-420.0,0.00018688,2]
[364328898,1749071439600,-420.0,0.00018688,2]
[364328899,1749071439610,-440.0,0.00018688,2]
[364328900,1749071439619,-440.0,0.00018688,2]
[364328901,1749071439629,-1140.85627546,0.00018688,2]
[364328902,1749071439638,-460.0,0.00018688,2]
[364328904,1749071439648,-440.0,0.00018688,2]
[364328905,1749071439658,-440.0,0.00018688,2]
[364328907,1749071439668,-440.0,0.00018688,2]
[364328909,1749071439678,-440.0,0.00018688,2]
[364328911,1749071439687,-440.0,0.00018688,2]
[364328912,1749071439697,-440.0,0.00018688,2]
[364328913,1749071439707,-440.0,0.00018688,2]
[364328914,1749071439716,-440.0,0.00018688,2]
[364328915,1749071439726,-440.0,0.00018688,2]
[364328916,1749071439735,-420.0,0.00018688,2]
[364328917,1749071439746,-150.53613233,0.00018688,2]
[364328918,1749071439755,-420.0,0.00018688,2]
[364328919,1749071439765,-998.05442026,0.000189,2]
[364328921,1749071439775,-500.0,0.00018946,2]
[364328922,1749071439784,-160.0,0.00018946,2]
[364328923,1749071439794,-621.72,0.00018959,2]
[364328924,1749071439803,-602.09,0.00018959,2]
[364328925,1749071439813,-815.84,0.00018959,2]
[364328927,1749071439823,-440.0,0.00018959,2]
[364328928,1749071439833,-1143.55,0.00018959,2]
[364328929,1749071439843,-440.0,0.00018959,2]
[364328930,1749071439852,-440.0,0.00018959,2]
[364328931,1749071439862,-440.0,0.00018959,2]
[364328932,1749071439871,-320.0,0.00018959,2]
[364328933,1749071439881,-440.0,0.00018959,2]
[364328934,1749071439890,-440.0,0.00018959,2]
[364328935,1749071439903,-440.0,0.00018959,2]
[364328936,1749071439912,-440.0,0.00018959,2]
[364328937,1749071439922,-419.08,0.00018959,2]
[364328938,1749071439932,-440.0,0.00018959,2]
[364328939,1749071439942,-440.0,0.00018959,2]
[364328940,1749071439952,-539.67,0.00018959,2]
[364328941,1749071439961,-583.37,0.00018959,2]
[364328942,1749071439971,-440.0,0.00018959,2]
[364328943,1749071439981,-28.60664105,0.00018959,2]
[364328945,1749071439998,-443.07335895,0.00018959,2]
[364328946,1749071440007,-170.32158357,0.0001896,2]
[364328947,1749071440016,-235.87900172,0.0001896,2]
[364328958,1749071440379,-440.0,0.00018411,2]
[364328959,1749071440389,-440.0,0.00018685,2]
[364328960,1749071440399,-401.74035534,0.00018686,2]
[364328961,1749071440409,-440.0,0.00018959,2]
[364328962,1749071440419,-204.12099828,0.0001896,2]
[364328963,1749071440429,-440.0,0.0001896,2]
[364328964,1749071440438,-440.0,0.0001896,2]
[364328965,1749071440448,-440.0,0.0001896,2]
[364328966,1749071440457,-745.04,0.0001896,2]
[364328967,1749071440467,-570.2,0.0001896,2]
[364328968,1749071440477,-440.0,0.00018961,2]
[364328969,1749071440487,-984.47,0.00018961,2]
[364328970,1749071440497,-440.0,0.00018961,2]
[364328971,1749071440510,-440.0,0.00018961,2]
[364328972,1749071440520,-442.11,0.00018961,2]
[364328973,1749071440529,-440.0,0.00018961,2]
[364328974,1749071440539,-577.98,0.00018961,2]
[364328975,1749071440549,-764.66,0.00018961,2]
[364328976,1749071440560,-420.0,0.00018961,2]
[364328977,1749071440570,-1093.47,0.00018961,2]
[364328978,1749071440579,-430.0,0.00019178,2]
[364328979,1749071440589,-174.469907,0.00019178,2]
[364328980,1749071440599,-621.72,0.00019233,2]
[364328981,1749071440611,-815.84,0.00019233,2]
[364328982,1749071440622,-1143.55,0.00019233,2]
[364328983,1749071440632,-440.0,0.00019233,2]
[364328984,1749071440642,-409.29536243,0.00019233,2]
[364328985,1749071440651,-440.0,0.00019233,2]
[364328986,1749071440661,-440.0,0.00019233,2]
[364328987,1749071440670,-440.0,0.00019233,2]
[364328988,1749071440679,-440.0,0.00019233,2]
[364328990,1749071440689,-440.0,0.00019233,2]
[364328992,1749071440698,-440.0,0.00019233,2]
[364328994,1749071440708,-440.0,0.00019233,2]
[364328995,1749071440718,-539.67,0.00019233,2]
[364328996,1749071440727,-440.0,0.00019233,2]
[364328997,1749071440738,-181.63,0.00019234,2]
[364328998,1749071440748,-440.0,0.00019234,2]
[364328999,1749071440757,-440.0,0.00019234,2]
[364329000,1749071440767,-440.0,0.00019234,2]
[364329001,1749071440776,-745.04,0.00019234,2]
[364329002,1749071440786,-399.08,0.00019235,2]
[364329003,1749071440795,-984.47,0.00019235,2]
[364329004,1749071440805,-440.0,0.00019235,2]
[364329005,1749071440815,-509.22,0.00019235,2]
[364329006,1749071440824,-442.11,0.00019235,2]
[364329007,1749071440833,-577.98,0.00019235,2]
[364329008,1749071440843,-764.66,0.00019235,2]
[364329009,1749071440852,-1093.47,0.00019235,2]
[364329010,1749071440862,-440.0,0.00019236,2]
[364329011,1749071440872,-621.72,0.00019507,2]
[364329012,1749071440881,-815.84,0.00019507,2]
[364329013,1749071440891,-1143.55,0.00019507,2]
[364329014,1749071440902,-440.0,0.00019507,2]
[364329015,1749071440912,-501.98,0.00019507,2]
[364329016,1749071440922,-588.5,0.00019507,2]
[364329017,1749071440932,-320.0,0.00019507,2]
[364329018,1749071440942,-440.0,0.00019507,2]
[364329019,1749071440952,-175.92,0.00019507,2]
[364329020,1749071440961,-440.0,0.00019507,2]
[364329021,1749071440972,-440.0,0.00019507,2]
[364329022,1749071440982,-539.67,0.00019507,2]
[364329023,1749071440991,-440.0,0.00019507,2]
[364329024,1749071441000,-500.0,0.00019508,2]
[364329025,1749071441010,-440.0,0.00019508,2]
[364329026,1749071441019,-440.0,0.00019508,2]
[364329027,1749071441028,-320.88,0.00019508,2]
[364329028,1749071441038,-745.04,0.00019508,2]
[364329029,1749071441047,-984.47,0.00019509,2]
[364329030,1749071441056,-440.0,0.00019509,2]
[364329031,1749071441067,-442.11,0.00019509,2]
[364329032,1749071441076,-577.98,0.00019509,2]
[364329033,1749071441085,-764.66,0.00019509,2]
[364329034,1749071441094,-1093.47,0.00019509,2]
[364329035,1749071441103,-3126.8,0.0001951,2]
[364329036,1749071441112,-3126.8,0.0001951,2]
[364329037,1749071441122,-3126.8,0.0001951,2]
[364329038,1749071441131,-3126.8,0.0001951,2]
[364329039,1749071441140,-440.0,0.0001951,2]
[364329040,1749071441149,-191.50532634,0.00019738,2]
[364329041,1749071441158,-621.72,0.00019781,2]
[364329042,1749071441258,-815.84,0.00019781,2]
[364329043,1749071441267,-1143.55,0.00019781,2]
[364329044,1749071441276,-440.0,0.00019781,2]
[364329045,1749071441286,-440.0,0.00019781,2]
[364329046,1749071441295,-440.0,0.00019781,2]
[364329047,1749071441304,-539.67,0.00019781,2]
[364329048,1749071441314,-440.0,0.00019781,2]
[364329049,1749071441323,-440.0,0.00019782,2]
[364329050,1749071441332,-440.0,0.00019782,2]
[364329051,1749071441341,-745.04,0.00019782,2]
[364329052,1749071441350,-984.47,0.00019783,2]
[364329053,1749071441360,-530.16,0.00019783,2]
[364329054,1749071441370,-442.11,0.00019783,2]
[364329055,1749071441379,-577.98,0.00019783,2]
[364329056,1749071441388,-764.66,0.00019783,2]
[364329057,1749071441397,-1093.47,0.00019783,2]
[364329058,1749071441406,-440.0,0.00019784,2]
[364329059,1749071441415,-290.549,0.00019826,2]
[364329060,1749071441424,-621.72,0.00020055,2]
[364329061,1749071441433,-815.84,0.00020055,2]
[364329062,1749071441443,-1143.55,0.00020055,2]
[364329063,1749071441451,-440.0,0.00020055,2]
[364329064,1749071441460,-440.0,0.00020055,2]
[364329065,1749071441470,-440.0,0.00020055,2]
[364329066,1749071441479,-539.67,0.00020055,2]
[364329067,1749071441488,-440.0,0.00020055,2]
[364329068,1749071441498,-440.0,0.00020056,2]
[364329069,1749071441508,-440.0,0.00020056,2]
[364329070,1749071441518,-745.04,0.00020056,2]
[364329071,1749071441527,-500.0,0.00020057,2]
[364329072,1749071441536,-984.47,0.00020057,2]
[364329073,1749071441546,-442.11,0.00020057,2]
[364329074,1749071441555,-577.98,0.00020057,2]
[364329075,1749071441564,-764.66,0.00020057,2]
[364329076,1749071441573,-1093.47,0.00020057,2]
[364329077,1749071441582,-440.0,0.00020058,2]
[364329078,1749071441591,-1200.0,0.00020068,2]
[364329079,1749071441600,-420.0,0.00020079,2]
[364329080,1749071441609,-265.011331,0.00020187,2]
[364329081,1749071441619,-621.72,0.00020329,2]
[364329082,1749071441628,-815.84,0.00020329,2]
[364329083,1749071441637,-1143.55,0.00020329,2]
[364329084,1749071441646,-440.0,0.00020329,2]
[364329085,1749071441656,-440.0,0.00020329,2]
[364329086,1749071441665,-440.0,0.00020329,2]
[364329087,1749071441675,-539.67,0.00020329,2]
[364329088,1749071441685,-440.0,0.00020329,2]
[364329089,1749071441695,-440.0,0.0002033,2]
[364329090,1749071441705,-440.0,0.0002033,2]
[364329091,1749071441715,-745.04,0.0002033,2]
[364329092,1749071441725,-984.47,0.00020331,2]
[364329093,1749071441734,-442.11,0.00020331,2]
[364329094,1749071441745,-577.98,0.00020331,2]
[364329095,1749071441754,-764.66,0.00020331,2]
[364329096,1749071441763,-1093.47,0.00020331,2]
[364329097,1749071441772,-440.0,0.00020332,2]
[364329098,1749071441782,-500.0,0.00020547,2]
[364329099,1749071441791,-855.0,0.000206,2]
[364329100,1749071441800,-1407.63,0.000206,2]
[364329101,1749071441810,-621.72,0.00020603,2]
[364329102,1749071441819,-815.84,0.00020603,2]
[364329103,1749071441830,-1143.55,0.00020603,2]
[364329104,1749071441840,-440.0,0.00020603,2]
[364329105,1749071441849,-440.0,0.00020603,2]
[364329106,1749071441859,-440.0,0.00020603,2]
[364329107,1749071441869,-539.67,0.00020603,2]
[364329108,1749071441879,-440.0,0.00020603,2]
[364329109,1749071441888,-464.32,0.00020604,2]
[364329110,1749071441899,-440.0,0.00020604,2]
[364329111,1749071441909,-745.04,0.00020604,2]
[364329112,1749071441918,-500.0,0.00020605,2]
[364329113,1749071441928,-984.47,0.00020605,2]
[364329114,1749071441937,-442.11,0.00020605,2]
[364329115,1749071441947,-577.98,0.00020605,2]
[364329116,1749071441956,-764.66,0.00020605,2]
[364329117,1749071441966,-1093.47,0.00020605,2]
[364329118,1749071441976,-440.0,0.00020606,2]
[364329119,1749071441985,-621.72,0.00020877,2]
[364329120,1749071441995,-815.84,0.00020877,2]
[364329121,1749071442005,-1143.55,0.00020877,2]
[364329122,1749071442015,-440.0,0.00020877,2]
[364329123,1749071442024,-440.0,0.00020877,2]
[364329124,1749071442034,-440.0,0.00020877,2]
[364329125,1749071442042,-539.67,0.00020877,2]
[364329126,1749071442050,-440.0,0.00020877,2]
[364329127,1749071442059,-440.0,0.00020878,2]
[364329128,1749071442069,-745.04,0.00020878,2]
[364329129,1749071442078,-984.47,0.00020879,2]
[364329130,1749071442088,-442.11,0.00020879,2]
[364329131,1749071442097,-577.98,0.00020879,2]
[364329132,1749071442106,-764.66,0.00020879,2]
[364329133,1749071442117,-1093.47,0.00020879,2]
[364329134,1749071442126,-440.0,0.0002088,2]
[364329135,1749071442135,-842.5625,0.00020958,2]
[364329136,1749071442145,-229.45591648,0.00020958,2]
[364329137,1749071442154,-160.0,0.00020958,2]
[364329138,1749071442164,-212.90465545,0.00020958,2]
[364329139,1749071442172,-423.69433488,0.00020958,2]
[364329140,1749071442182,-160.0,0.00020958,2]
[364329141,1749071442191,-500.0,0.00021095,3]
[364329142,1749071442200,-621.72,0.00021151,2]
[364329143,1749071442210,-815.84,0.00021151,2]
[364329144,1749071442219,-1143.55,0.00021151,2]
[364329145,1749071442228,-440.0,0.00021151,2]
[364329146,1749071442237,-440.0,0.00021151,2]
[364329147,1749071442247,-440.0,0.00021151,2]
[364329148,1749071442257,-539.67,0.00021151,2]
[364329149,1749071442266,-440.0,0.00021151,2]
[364329150,1749071442275,-440.0,0.00021152,2]
[364329151,1749071442285,-745.04,0.00021152,2]
[364329152,1749071442294,-984.47,0.00021153,2]
[364329153,1749071442303,-442.11,0.00021153,2]
[364329154,1749071442312,-577.98,0.00021153,2]
[364329155,1749071442322,-764.66,0.00021153,2]
[364329156,1749071442332,-1093.47,0.00021153,2]
[364329157,1749071442341,-440.0,0.00021154,2]
[364329158,1749071442350,-191.50532634,0.00021162,2]
[364329159,1749071442359,-500.0,0.00021163,2]
[364329160,1749071442371,-1200.0,0.00021164,2]
[364329161,1749071442381,-421.2414493,0.00021288,2]
[364329162,1749071442390,-621.72,0.00021425,2]
[364329163,1749071442399,-815.84,0.00021425,2]
[364329164,1749071442409,-1143.55,0.00021425,2]
[364329165,1749071442418,-440.0,0.00021425,2]
[364329166,1749071442426,-440.0,0.00021425,2]
[364329167,1749071442436,-344.28,0.00021425,2]
[364329168,1749071442446,-539.67,0.00021425,2]
[364329169,1749071442455,-440.0,0.00021425,2]
[364329170,1749071442465,-440.0,0.00021426,2]
[364329171,1749071442474,-745.04,0.00021426,2]
[364329172,1749071442484,-984.47,0.00021427,2]
[364329173,1749071442493,-442.11,0.00021427,2]
[364329174,1749071442505,-577.98,0.00021427,2]
[364329175,1749071442516,-764.66,0.00021427,2]
[364329176,1749071442526,-1093.47,0.00021427,2]
[364329177,1749071442536,-440.0,0.00021428,2]
[364329178,1749071442546,-500.0,0.00021643,4]
[364329179,1749071442556,-500.0,0.00021675,2]
[364329180,1749071442567,-270.8437063,0.00021699,2]
[364329181,1749071442577,-153.0,0.00021699,2]
[364329182,1749071442588,-153.0,0.00021699,2]
[364329183,1749071442597,-153.0,0.00021699,2]
[364329184,1749071442608,-153.0,0.00021699,2]
[364329185,1749071442620,-621.72,0.00021699,2]
[364329186,1749071442630,-815.84,0.00021699,2]
[364329187,1749071442639,-1143.55,0.00021699,2]
[364329188,1749071442649,-440.0,0.00021699,2]
[364329189,1749071442658,-440.0,0.00021699,2]
[364329190,1749071442669,-539.67,0.00021699,2]
[364329191,1749071442679,-440.0,0.00021699,2]
[364329192,1749071442688,-440.0,0.000217,2]
[364329194,1749071442699,-745.04,0.000217,2]
[364329196,1749071442708,-984.47,0.00021701,2]
[364329197,1749071442718,-442.11,0.00021701,2]
[364329199,1749071442727,-577.98,0.00021701,2]
[364329200,1749071442736,-764.66,0.00021701,2]
[364329201,1749071442745,-1093.47,0.00021701,2]
[364329202,1749071442755,-440.0,0.00021702,2]
[364329203,1749071442765,-500.0,0.0002175,2]
[364329204,1749071442775,-500.0,0.00021871,2]
[364329205,1749071442784,-500.0,0.00021871,2]
[364329207,1749071442793,-587.0,0.00021899,2]
[364329208,1749071442803,-1407.63,0.000219,2]
[364329211,1749071442813,-500.0,0.00021917,2]
[364329213,1749071442823,-621.72,0.00021973,2]
[364329214,1749071442833,-815.84,0.00021973,2]
[364329215,1749071442843,-1143.55,0.00021973,2]
[364329217,1749071442852,-440.0,0.00021973,2]
[364329219,1749071442862,-440.0,0.00021973,2]
[364329221,1749071442872,-539.67,0.00021973,2]
[364329223,1749071442881,-440.0,0.00021973,2]
[364329224,1749071442890,-440.0,0.00021974,2]
[364329225,1749071442902,-745.04,0.00021974,2]
[364329226,1749071442915,-984.47,0.00021975,2]
[364329227,1749071442924,-442.11,0.00021975,2]
[364329228,1749071442933,-577.98,0.00021975,2]
[364329229,1749071442943,-764.66,0.00021975,2]
[364329231,1749071442954,-1093.47,0.00021975,2]
[364329232,1749071442963,-440.0,0.00021976,2]
[364329233,1749071442973,-500.0,0.00021999,2]
[364329234,1749071442983,-3000.0,0.00022,2]
[364329235,1749071442993,-173.0,0.00022,2]
[364329236,1749071443002,-74477.0,0.00022,7]
[364329237,1749071443012,-61458.65,0.00022,2]
[364329238,1749071443022,-3000.0,0.0002201,2]
[364329239,1749071443031,-3000.0,0.0002202,2]
[364329240,1749071443041,-3000.0,0.0002203,2]
[364329242,1749071443051,-3000.0,0.0002204,2]
[364329244,1749071443061,-3000.0,0.0002205,2]
[364329246,1749071443071,-3000.0,0.0002206,2]
[364329248,1749071443081,-500.0,0.00022069,2]
[364329250,1749071443090,-3000.0,0.0002207,2]
[364329252,1749071443100,-3000.0,0.0002208,2]
[364329254,1749071443109,-3000.0,0.0002209,2]
[364329256,1749071443120,-3000.0,0.000221,2]
[364329258,1749071443129,-855.0,0.000221,7]
[364329260,1749071443139,-3000.0,0.0002211,2]
[364329262,1749071443148,-3000.0,0.0002212,2]
[364329264,1749071443162,-500.0,0.00022129,2]
[364329266,1749071443171,-500.0,0.00022129,2]
[364329268,1749071443181,-500.0,0.00022129,2]
[364329270,1749071443191,-3000.0,0.0002213,2]
[364329272,1749071443200,-152.51297585,0.00022132,2]
[364329274,1749071443209,-207.4,0.00022132,2]
[364329276,1749071443219,-500.0,0.00022132,2]
[364329278,1749071443228,-500.0,0.00022132,2]
[364329280,1749071443238,-500.0,0.00022132,2]
[364329282,1749071443248,-500.0,0.00022132,2]
[364329284,1749071443258,-500.0,0.00022132,2]
[364329286,1749071443267,-500.0,0.00022132,2]
[364329288,1749071443278,-5000.0,0.00022132,2]
[364329290,1749071443290,-500.0,0.00022132,2]
[364329292,1749071443299,-500.0,0.00022132,2]
[364329294,1749071443309,-500.0,0.00022132,2]
[364329296,1749071443318,-500.0,0.00022132,2]
[364329298,1749071443328,-500.0,0.00022132,2]
[364329301,1749071443338,-500.0,0.00022132,2]
[364329303,1749071443347,-500.0,0.00022132,2]
[364329305,1749071443357,-500.0,0.00022132,2]
[364329307,1749071443366,-500.0,0.00022132,2]
[364329309,1749071443376,-500.0,0.00022135,2]
[364329321,1749071443477,-500.0,0.00022135,2]
[364329323,1749071443487,-500.0,0.00022135,2]
[364329325,1749071443496,-500.0,0.00022135,2]
[364329327,1749071443506,-600.0,0.00022135,2]
[364329329,1749071443516,-500.0,0.00022135,2]
[364329331,1749071443526,-500.0,0.00022139,2]
[364329333,1749071443535,-217.62625734,0.00022139,2]
[364329335,1749071443545,-500.0,0.00022139,2]
[364329337,1749071443555,-500.0,0.00022139,2]
[364329339,1749071443565,-500.0,0.00022139,2]
[364329341,1749071443575,-500.0,0.00022139,2]
[364329343,1749071443584,-500.0,0.00022139,2]
[364329345,1749071443594,-500.0,0.00022139,2]
[364329347,1749071443604,-500.0,0.00022139,2]
[364329349,1749071443613,-500.0,0.00022139,2]
[364329351,1749071443624,-500.0,0.00022139,2]
[364329353,1749071443632,-500.0,0.00022139,2]
[364329355,1749071443643,-500.0,0.00022139,2]
[364329357,1749071443653,-500.0,0.00022139,2]
[364329359,1749071443662,-478.9768314,0.00022139,2]
[364329361,1749071443672,-500.0,0.00022139,2]
[364329363,1749071443681,-448.00583039,0.00022139,2]
[364329365,1749071443691,-500.0,0.00022139,2]
[364329367,1749071443700,-500.0,0.00022139,2]
[364329369,1749071443709,-500.0,0.00022139,2]
[364329371,1749071443719,-500.0,0.00022139,2]
[364329373,1749071443729,-500.0,0.00022139,2]
[364329375,1749071443739,-500.0,0.00022139,2]
[364329377,1749071443749,-500.0,0.00022139,2]
[364329379,1749071443760,-500.0,0.00022139,2]
[364329381,1749071443770,-500.0,0.00022139,2]
[364329383,1749071443779,-500.0,0.00022139,2]
[364329385,1749071443788,-500.0,0.00022139,2]
[364329387,1749071443801,-500.0,0.00022139,2]
[364329389,1749071443811,-500.0,0.00022139,2]
[364329391,1749071443820,-500.0,0.00022139,2]
[364329393,1749071443829,-500.0,0.00022139,2]
[364329395,1749071443838,-500.0,0.00022139,2]
[364329397,1749071443848,-500.0,0.00022139,2]
[364329398,1749071443857,-400.15226443,0.00022139,2]
[364329400,1749071443866,-3000.0,0.0002214,2]
[364329402,1749071443875,-3000.0,0.0002215,2]
[364329404,1749071443885,-3000.0,0.0002216,2]
[364329407,1749071443895,-3000.0,0.0002217,2]
[364329408,1749071443908,-500.0,0.00022176,2]
[364329410,1749071443918,-500.0,0.00022176,2]
[364329413,1749071443927,-500.0,0.00022176,2]
[364329415,1749071443937,-500.0,0.00022176,2]
[364329417,1749071443948,-501.89640537,0.00022176,2]
[364329419,1749071443958,-500.0,0.00022176,2]
[364329421,1749071443967,-3000.0,0.0002218,2]
[364329422,1749071443976,-500.0,0.00022189,2]
[364329424,1749071443988,-3000.0,0.0002219,2]
[364329426,1749071443997,-3000.0,0.000222,2]
[364329428,1749071444006,-3000.0,0.0002221,2]
[364329430,1749071444016,-3000.0,0.0002222,2]
[364329432,1749071444025,-1000.0,0.00022223,2]
[364329434,1749071444034,-3000.0,0.0002223,2]
[364329436,1749071444043,-3000.0,0.0002224,2]
[364329438,1749071444054,-728.1231,0.00022247,2]
[364329440,1749071444064,-621.72,0.00022247,2]
[364329442,1749071444075,-815.84,0.00022247,2]
[364329444,1749071444085,-1143.55,0.00022247,2]
[364329446,1749071444095,-440.0,0.00022247,2]
[364329448,1749071444104,-440.0,0.00022247,2]
[364329450,1749071444113,-539.67,0.00022247,2]
[364329452,1749071444123,-440.0,0.00022247,2]
[364329454,1749071444133,-440.0,0.00022248,2]
[364329456,1749071444144,-745.04,0.00022248,2]
[364329458,1749071444154,-449.52,0.00022249,2]
[364329460,1749071444164,-984.47,0.00022249,2]
[364329462,1749071444174,-442.11,0.00022249,2]
[364329464,1749071444183,-577.98,0.00022249,2]
[364329466,1749071444193,-764.66,0.00022249,2]
[364329468,1749071444203,-1093.47,0.00022249,2]
[364329470,1749071444212,-3000.0,0.0002225,2]
[364329472,1749071444222,-440.0,0.0002225,2]
[364329474,1749071444231,-3000.0,0.0002226,2]
[364329476,1749071444241,-1200.0,0.0002226,2]
[364329478,1749071444251,-3000.0,0.0002227,2]
[364329480,1749071444260,-3000.0,0.0002228,2]
[364329482,1749071444269,-3000.0,0.0002229,2]
[364329484,1749071444279,-509.59323327,0.00022298,2]
[364329486,1749071444288,-3000.0,0.000223,2]
[364329488,1749071444298,-3000.0,0.0002231,2]
[364329490,1749071444307,-4507.970417,0.0002232,2]
[364329492,1749071444317,-151.0,0.0002232,7]
[364329494,1749071444327,-1000.0,0.00022419,2]
[364329496,1749071444336,-1000.0,0.00022419,2]
[364329498,1749071444346,-500.0,0.00022465,2]
[364329500,1749071444356,-153.0,0.00022521,2]
[364329502,1749071444373,-153.0,0.00022521,2]
[364329504,1749071444382,-153.0,0.00022521,2]
[364329507,1749071444393,-621.72,0.00022521,2]
[364329508,1749071444403,-815.84,0.00022521,2]
[364329510,1749071444413,-1143.55,0.00022521,2]
[364329512,1749071444422,-440.0,0.00022521,2]
[364329515,1749071444432,-440.0,0.00022521,2]
[364329517,1749071444442,-539.67,0.00022521,2]
[364329518,1749071444451,-440.0,0.00022521,2]
[364329520,1749071444461,-440.0,0.00022522,2]